[Event "13th All African Rapid-ch Men 2024"]
[Site "Accra"]
[Date "2024.03.10"]
[Round "5.7"]
[White "Asabri, Hussien"]
[Black "Pedro Manuel Envo Engonga Avom"]
[Result "1-0"]
[ECO "D40"]
[WhiteElo "2196"]
[BlackElo "1702"]
[Annotator "ChessBase"]
[PlyCount "112"]
[EventDate "2024.03.07"]
[EventType "rapid"]
[EventCountry "GHA"]
[SourceTitle "playchess.com"]
[Source "ChessBase"]
[SourceQuality "1"]
[TimeControl "900+10"]

1. d4 {[%emt 0:00:01]} d5 {[%emt 0:00:02]} 2. Nf3 {[%emt 0:00:02]} Nf6 {[%emt 0:00:51]} 3. c4 {[%emt 0:00:02]} e6 {[%emt 0:00:07]} 4. Nc3 {[%emt 0:00:02]} c5 {[%emt 0:00:33]} 5. e3 {[%emt 0:01:46]} Nc6 {[%emt 0:01:06]} 6. a3 {[%emt 0:00:23]} a5 {[%emt 0:00:31]} 7. Bd3 {[%emt 0:00:36]} Bd6 {[%emt 0:01:27]} 8. O-O {[%emt 0:00:27]} O-O {[%emt 0:00:04]} 9. b3 {[%emt 0:02:21]} cxd4 {[%emt 0:01:47]} 10. exd4 {[%emt 0:00:07]} e5 {[%emt 0:00:29]} 11. cxd5 {[%emt 0:05:54]} Nxd4 {[%emt 0:01:50]} 12. h3 {[%emt 0:00:50]} h6 {[%emt 0:02:25]} 13. Be3 {[%emt 0:01:00]} Nf5 {[%emt 0:02:00]} 14. Bd2 {[%emt 0:00:23]} Re8 {[%emt 0:00:30]} 15. Re1 {[%emt 0:00:12]} Nd4 {[%emt 0:00:17]} 16. Nxd4 {[%emt 0:01:19]} exd4 {[%emt 0:00:04]} 17. Rxe8+ {[%emt 0:00:22]} Qxe8 {[%emt 0:00:29]} 18. Nb5 {[%emt 0:00:58]} Qe5 {[%emt 0:01:00]} 19. Nxd6 {[%emt 0:01:09]} Qxd6 {[%emt 0:00:02]} 20. Qe2 {[%emt 0:00:12]} Qxd5 {[%emt 0:00:39]} 21. Bc4 {[%emt 0:00:03]} Qd6 {[%emt 0:00:49]} 22. Re1 {[%emt 0:00:18]} Bd7 {[%emt 0:00:47]} 23. a4 {[%emt 0:00:12]} Bc6 {[%emt 0:00:34]} 24. Qe5 {[%emt 0:00:10]} Qxe5 {[%emt 0:00:32]} 25. Rxe5 {[%emt 0:00:02]} b6 {[%emt 0:00:02]} 26. Re7 {[%emt 0:00:20]} Rf8 {[%emt 0:00:10]} 27. Rc7 {[%emt 0:00:11]} Bd5 {[%emt 0:00:01]} 28. Bxd5 {[%emt 0:00:12]} Nxd5 {[%emt 0:00:03]} 29. Rd7 {[%emt 0:00:03]} Nf6 {[%emt 0:00:19]} 30. Rxd4 {[%emt 0:00:04]} Rb8 {[%emt 0:00:07]} 31. Bf4 {[%emt 0:00:07]} Rb7 {[%emt 0:00:01]} 32. Be3 {[%emt 0:00:15]} b5 {[%emt 0:00:04]} 33. Rd8+ {[%emt 0:00:04]} Kh7 {[%emt 0:00:04]} 34. Ra8 {[%emt 0:00:01]} Nd5 {[%emt 0:00:26]} 35. Rxa5 {[%emt 0:00:07]} Nxe3 {[%emt 0:00:14]} 36. fxe3 {[%emt 0:00:02]} bxa4 {[%emt 0:00:05]} 37. bxa4 {[%emt 0:00:03]} Kg6 {[%emt 0:00:02]} 38. Kf2 {[%emt 0:00:02]} Kf6 {[%emt 0:00:01]} 39. Kf3 {[%emt 0:00:02]} Ke6 {[%emt 0:00:01]} 40. Ra8 {[%emt 0:00:06]} f5 {[%emt 0:00:06]} 41. a5 {[%emt 0:00:06]} Kd6 {[%emt 0:00:03]} 42. a6 {[%emt 0:00:04]} Rd7 {[%emt 0:00:12]} 43. a7 {[%emt 0:00:18]} g5 {[%emt 0:00:13]} 44. g4 {[%emt 0:00:16]} fxg4+ {[%emt 0:00:11]} 45. Kxg4 {[%emt 0:00:12]} Kd5 {[%emt 0:00:02]} 46. e4+ {[%emt 0:00:09]} Kd4 {[%emt 0:00:04]} 47. e5 {[%emt 0:00:09]} Ke4 {[%emt 0:00:01]} 48. e6 {[%emt 0:00:03]} Re7 {[%emt 0:00:01]} 49. Kh5 {[%emt 0:00:28]} Ke5 {[%emt 0:01:03]} 50. Kxh6 {[%emt 0:00:56]} g4 {[%emt 0:00:01]} 51. hxg4 {[%emt 0:00:11]} Rxe6+ {[%emt 0:00:01]} 52. Kh5 {[%emt 0:00:02]} Re7 {[%emt 0:00:01]} 53. g5 {[%emt 0:00:14]} Ke6 {[%emt 0:00:10]} 54. Kh6 {[%emt 0:00:15]} Ke5 {[%emt 0:00:33]} 55. g6 {[%emt 0:00:02]} Ke6 {[%emt 0:00:43]} 56. g7 {[%emt 0:00:05]} Kd5 {[%emt 0:00:30]} 1-0

[Event "13th All African Rapid-ch Men 2024"]
[Site "Accra"]
[Date "2024.03.10"]
[Round "5.8"]
[White "Fomevor, Cephas Clinton"]
[Black "Levitan, Caleb Levi"]
[Result "1/2-1/2"]
[ECO "D31"]
[WhiteElo "1887"]
[BlackElo "2235"]
[Annotator "ChessBase"]
[PlyCount "108"]
[EventDate "2024.03.07"]
[EventType "rapid"]
[EventCountry "GHA"]
[SourceTitle "playchess.com"]
[Source "ChessBase"]
[SourceQuality "1"]
[TimeControl "900+10"]

1. d4 {[%emt 0:00:01]} Nf6 {[%emt 0:00:01]} 2. c4 {[%emt 0:00:01]} e6 {[%emt 0:00:01]} 3. a3 {[%emt 0:00:01]} d5 {[%emt 0:00:08]} 4. cxd5 {[%emt 0:00:02]} exd5 {[%emt 0:00:02]} 5. Nc3 {[%emt 0:00:01]} c6 {[%emt 0:00:07]} 6. Nf3 {[%emt 0:00:07]} Bd6 {[%emt 0:00:18]} 7. Bg5 {[%emt 0:00:23]} O-O {[%emt 0:00:11]} 8. Qc2 {[%emt 0:00:04]} Bg4 {[%emt 0:00:28]} 9. e3 {[%emt 0:00:14]} Nbd7 {[%emt 0:00:15]} 10. Bd3 {[%emt 0:00:03]} Qc7 {[%emt 0:00:10]} 11. Bh4 {[%emt 0:00:51]} Rfe8 {[%emt 0:01:05]} 12. Bg3 {[%emt 0:00:28]} a6 {[%emt 0:00:54]} 13. O-O {[%emt 0:00:18]} Bh5 {[%emt 0:00:37]} 14. b4 {[%emt 0:00:33]} Bg6 {[%emt 0:00:21]} 15. Na4 {[%emt 0:00:38]} Bxd3 {[%emt 0:00:45]} 16. Qxd3 {[%emt 0:00:01]} Ne4 {[%emt 0:00:08]} 17. Nc5 {[%emt 0:01:31]} Bxg3 {[%emt 0:00:45]} 18. hxg3 {[%emt 0:00:01]} Nb6 {[%emt 0:00:21]} 19. Qc2 {[%emt 0:01:15]} Nd6 {[%emt 0:00:30]} 20. Ne5 {[%emt 0:00:27]} f6 {[%emt 0:00:48]} 21. Nf3 {[%emt 0:00:26]} Nbc4 {[%emt 0:00:42]} 22. Nd2 {[%emt 0:00:18]} b6 {[%emt 0:00:42]} 23. Nd3 {[%emt 0:01:11]} Qd7 {[%emt 0:02:01]} 24. Nb2 {[%emt 0:00:59]} Nxd2 {[%emt 0:00:43]} 25. Qxd2 {[%emt 0:00:02]} h5 {[%emt 0:01:16]} 26. Qe2 {[%emt 0:01:18]} Qf5 {[%emt 0:02:17]} 27. Rac1 {[%emt 0:00:35]} Rec8 {[%emt 0:00:57]} 28. Rc2 {[%emt 0:01:19]} b5 {[%emt 0:01:03]} 29. Nd3 {[%emt 0:01:14]} Nc4 {[%emt 0:00:16]} 30. Rc3 {[%emt 0:00:21]} a5 {[%emt 0:00:48]} 31. Nc5 {[%emt 0:00:40]} Re8 {[%emt 0:00:32]} 32. Rd1 {[%emt 0:01:43]} Ra7 {[%emt 0:00:12]} 33. Qf3 {[%emt 0:00:16]} Qg6 {[%emt 0:00:24]} 34. Nd3 {[%emt 0:00:44]} Qf7 {[%emt 0:00:31]} 35. Nc5 {[%emt 0:00:41]} Rea8 {[%emt 0:00:10]} 36. Qf5 {[%emt 0:00:39]} axb4 {[%emt 0:00:12]} 37. axb4 {[%emt 0:00:02]} Ra2 {[%emt 0:00:11]} 38. Nd3 {[%emt 0:00:56]} g6 {[%emt 0:00:09]} 39. Qf4 {[%emt 0:00:26]} Kg7 {[%emt 0:00:16]} 40. g4 {[%emt 0:00:07]} hxg4 {[%emt 0:00:10]} 41. Qxg4 {[%emt 0:00:04]} Ra1 {[%emt 0:00:03]} 42. Rcc1 {[%emt 0:00:05]} Rxc1 {[%emt 0:00:05]} 43. Rxc1 {[%emt 0:00:01]} f5 {[%emt 0:00:10]} 44. Qg3 {[%emt 0:00:04]} Ra2 {[%emt 0:00:24]} 45. Ne5 {[%emt 0:00:05]} Qe6 {[%emt 0:00:11]} 46. Nd3 {[%emt 0:00:19]} Qe7 {[%emt 0:00:15]} 47. Nf4 {[%emt 0:00:05]} Qf7 {[%emt 0:00:05]} 48. Nh5+ {[%emt 0:00:06]} Kh7 {[%emt 0:00:02]} 49. Nf4 {[%emt 0:00:03]} Rb2 {[%emt 0:00:08]} 50. Qh4+ {[%emt 0:00:17]} Kg7 {[%emt 0:00:09]} 51. Ra1 {[%emt 0:00:26]} Nd6 {[%emt 0:00:22]} 52. Ra8 {[%emt 0:00:20]} Ne8 {[%emt 0:00:07]} 53. Nd3 {[%emt 0:00:22]} Rb1+ {[%emt 0:00:06]} 54. Kh2 {[%emt 0:00:06]} Qf6 {[%emt 0:00:11]} 1/2-1/2

[Event "13th All African Rapid-ch Men 2024"]
[Site "Accra"]
[Date "2024.03.10"]
[Round "5.9"]
[White "Pereira, Sergio Murilo de Ara"]
[Black "Mahamat Hachim Bachar"]
[Result "1-0"]
[ECO "C77"]
[WhiteElo "2115"]
[BlackElo "1843"]
[Annotator "RC"]
[PlyCount "81"]
[EventDate "2024.03.07"]
[EventType "rapid"]
[EventCountry "GHA"]
[SourceTitle "playchess.com"]
[Source "ChessBase"]
[SourceQuality "1"]
[TimeControl "900+10"]

1. e4 {[%emt 0:00:02]} e5 {[%emt 0:00:02]} 2. Nf3 {[%emt 0:00:03]} Nc6 {[%emt 0:00:03]} 3. Bb5 {[%emt 0:00:01]} a6 {[%emt 0:00:09]} 4. Ba4 {[%emt 0:00:02]} Nf6 {[%emt 0:00:03]} 5. d3 {[%emt 0:00:01]} Bc5 {[%emt 0:00:09]} 6. Nc3 {[%emt 0:00:51]} b5 {[%emt 0:00:07]} 7. Bb3 {[%emt 0:00:02]} d6 {[%emt 0:00:02]} 8. Nd5 {[%emt 0:00:23]} h6 {[%emt 0:00:16]} 9. c3 {[%emt 0:00:35]} Bg4 {[%emt 0:00:03]} 10. h3 {[%emt 0:00:41]} Bh5 {[%emt 0:00:02]} 11. g4 {[%emt 0:03:00]} Bg6 {[%emt 0:00:02]} 12. Qe2 {[%emt 0:01:44]} Na5 {[%emt 0:00:17]} 13. Bc2 {[%emt 0:00:15]} Nb7 {[%emt 0:00:22]} 14. Ne3 {[%emt 0:02:09]} Qe7 {[%emt 0:00:28]} 15. Nh4 {[%emt 0:00:15]} O-O-O {[%emt 0:00:31]} 16. Nhf5 {[%emt 0:00:32]} Qf8 {[%emt 0:00:11]} 17. b4 {[%emt 0:00:11]} Bb6 {[%emt 0:00:14]} 18. a4 {[%emt 0:00:07]} Kb8 {[%emt 0:00:36]} 19. axb5 {[%emt 0:00:09]} axb5 {[%emt 0:00:02]} 20. Bb3 {[%emt 0:00:05]} c6 {[%emt 0:00:15]} 21. Bb2 {[%emt 0:01:33]} d5 {[%emt 0:00:09]} 22. exd5 {[%emt 0:00:54]} Nxd5 {[%emt 0:00:07]} 23. Nxd5 {[%emt 0:01:45]} cxd5 {[%emt 0:00:02]} 24. O-O {[%emt 0:00:03]} f6 {[%emt 0:00:02]} 25. Ne3 {[%emt 0:00:10]} d4 {[%emt 0:00:10]} 26. Nd5 {[%emt 0:00:14]} Qd6 {[%emt 0:00:33]} 27. cxd4 {[%emt 0:00:33]} exd4 {[%emt 0:00:21]} 28. Bc1 {[%emt 0:00:03]} Qc6 {[%emt 0:00:43]} 29. Bf4+ {[%emt 0:00:18]} Nd6 {[%emt 0:00:03]} 30. Rfc1 {[%emt 0:00:06]} Qb7 {[%emt 0:00:02]} 31. Qa2 {[%emt 0:00:09]} Qa7 {[%emt 0:02:13]} 32. Nxb6 {[%emt 0:00:23]} Qxa2 {[%emt 0:00:01]} 33. Rxa2 {[%emt 0:00:01]} Kb7 {[%emt 0:00:20]} 34. Bd5+ {[%emt 0:00:14]} Kxb6 {[%emt 0:00:25]} 35. Rc6+ {[%emt 0:00:01]} Kb7 {[%emt 0:00:03]} 36. Rxd6+ {[%emt 0:00:10]} Kc7 {[%emt 0:00:16]} 37. Rc2+ {[%emt 0:00:08]} Kb8 {[%emt 0:00:15]} 38. Rxd8+ {[%emt 0:00:02]} Ka7 {[%emt 0:00:02]} 39. Rc7+ {[%emt 0:00:22]} Kb6 {[%emt 0:00:05]} 40. Rb7+ {[%emt 0:00:01]} Ka6 {[%emt 0:00:02]} 41. Rd6# {[%emt 0:00:07]} 1-0

[Event "13th All African Rapid-ch Men 2024"]
[Site "Accra"]
[Date "2024.03.10"]
[Round "5.10"]
[White "Ntamatungiro, Wilfried"]
[Black "Akpa Prince"]
[Result "0-1"]
[ECO "B22"]
[WhiteElo "1905"]
[BlackElo "1845"]
[Annotator "ChessBase"]
[PlyCount "82"]
[EventDate "2024.03.07"]
[EventType "rapid"]
[EventCountry "GHA"]
[SourceTitle "playchess.com"]
[Source "ChessBase"]
[SourceQuality "1"]
[TimeControl "900+10"]

1. e4 {[%emt 0:00:11]} c5 {[%emt 0:00:01]} 2. c3 {[%emt 0:00:02]} d5 {[%emt 0:00:02]} 3. e5 {[%emt 0:00:02]} d4 {[%emt 0:00:03]} 4. Nf3 {[%emt 0:00:17]} Bg4 {[%emt 0:00:09]} 5. cxd4 {[%emt 0:00:10]} cxd4 {[%emt 0:00:09]} 6. Qb3 {[%emt 0:02:06]} Bxf3 {[%emt 0:00:09]} 7. Qxf3 {[%emt 0:00:04]} Nc6 {[%emt 0:00:10]} 8. e6 {[%emt 0:00:04]} fxe6 {[%emt 0:00:31]} 9. Bd3 {[%emt 0:01:30]} Nf6 {[%emt 0:00:09]} 10. Bb5 {[%emt 0:00:09]} Qd5 {[%emt 0:00:34]} 11. Na3 {[%emt 0:02:34]} Qxf3 {[%emt 0:01:34]} 12. gxf3 {[%emt 0:00:02]} a6 {[%emt 0:00:06]} 13. Bc4 {[%emt 0:00:39]} Nd5 {[%emt 0:00:36]} 14. d3 {[%emt 0:01:25]} g6 {[%emt 0:01:07]} 15. h4 {[%emt 0:00:26]} Ne5 {[%emt 0:00:24]} 16. Ke2 {[%emt 0:00:16]} Bg7 {[%emt 0:00:47]} 17. f4 {[%emt 0:00:44]} Nxc4 {[%emt 0:00:05]} 18. Nxc4 {[%emt 0:00:03]} Rf8 {[%emt 0:00:57]} 19. h5 {[%emt 0:00:15]} b5 {[%emt 0:00:22]} 20. Ne5 {[%emt 0:02:20]} Nxf4+ {[%emt 0:00:22]} 21. Bxf4 {[%emt 0:00:06]} Rxf4 {[%emt 0:00:05]} 22. Nf3 {[%emt 0:00:44]} Rc8 {[%emt 0:00:44]} 23. Rac1 {[%emt 0:00:34]} Rxc1 {[%emt 0:00:10]} 24. Rxc1 {[%emt 0:00:06]} gxh5 {[%emt 0:00:32]} 25. Ng5 {[%emt 0:00:21]} Bh6 {[%emt 0:00:52]} 26. Nxe6 {[%emt 0:02:29]} Rxf2+ {[%emt 0:01:46]} 27. Kxf2 {[%emt 0:00:01]} Bxc1 {[%emt 0:00:01]} 28. Nc7+ {[%emt 0:00:09]} Kd7 {[%emt 0:00:27]} 29. Nxa6 {[%emt 0:00:07]} Bxb2 {[%emt 0:00:11]} 30. Nc5+ {[%emt 0:00:24]} Kc6 {[%emt 0:00:14]} 31. Ne4 {[%emt 0:00:19]} Kb6 {[%emt 0:00:14]} 32. Ng5 {[%emt 0:00:28]} Ka5 {[%emt 0:00:13]} 33. Ne4 {[%emt 0:01:04]} Ka4 {[%emt 0:00:07]} 34. Ng3 {[%emt 0:00:24]} Ka3 {[%emt 0:00:09]} 35. Ke2 {[%emt 0:00:03]} h4 {[%emt 0:00:05]} 36. Nf5 {[%emt 0:00:14]} h3 {[%emt 0:00:04]} 37. Kf3 {[%emt 0:00:01]} Kxa2 {[%emt 0:00:12]} 38. Nxe7 {[%emt 0:00:02]} b4 {[%emt 0:00:10]} 39. Nc6 {[%emt 0:00:12]} b3 {[%emt 0:00:18]} 40. Ne5 {[%emt 0:00:08]} Bc3 {[%emt 0:00:08]} 41. Nc4 {[%emt 0:00:32]} b2 {[%emt 0:00:02]} 0-1

[Event "13th All African Rapid-ch Men 2024"]
[Site "Accra"]
[Date "2024.03.10"]
[Round "5.11"]
[White "Frempong-Smart Daniel"]
[Black "Yacouba, Souley Moussa"]
[Result "1-0"]
[ECO "E06"]
[WhiteElo "1877"]
[BlackElo "1645"]
[Annotator "NA"]
[PlyCount "109"]
[EventDate "2024.03.07"]
[EventType "rapid"]
[EventCountry "GHA"]
[SourceTitle "playchess.com"]
[Source "ChessBase"]
[SourceQuality "1"]
[TimeControl "900+10"]

1. d4 {[%emt 0:00:03]} d5 {[%emt 0:00:05]} 2. Nf3 {[%emt 0:00:02]} Nf6 {[%emt 0:00:07]} 3. g3 {[%emt 0:00:02]} e6 {[%emt 0:00:20]} 4. Bg2 {[%emt 0:00:04]} c5 {[%emt 0:00:06]} 5. O-O {[%emt 0:00:14]} Be7 {[%emt 0:00:04]} 6. c4 {[%emt 0:00:07]} O-O {[%emt 0:00:40]} 7. cxd5 {[%emt 0:00:11]} Nxd5 {[%emt 0:01:50]} 8. dxc5 {[%emt 0:00:30]} Bxc5 {[%emt 0:00:35]} 9. Qc2 {[%emt 0:00:03]} Na6 {[%emt 0:00:26]} 10. a3 {[%emt 0:00:30]} Be7 {[%emt 0:01:18]} 11. Rd1 {[%emt 0:00:08]} Qc7 {[%emt 0:00:06]} 12. Qxc7 {[%emt 0:02:21]} Naxc7 {[%emt 0:00:20]} 13. Bd2 {[%emt 0:00:34]} Bf6 {[%emt 0:01:15]} 14. e4 {[%emt 0:00:11]} Nb6 {[%emt 0:00:40]} 15. Bb4 {[%emt 0:04:41]} Rd8 {[%emt 0:09:48]} 16. Rxd8+ {[%emt 0:00:23]} Bxd8 {[%emt 0:00:00]} 17. Nbd2 {[%emt 0:00:15]} Nd7 {[%emt 0:00:00]} 18. Nc4 {[%emt 0:00:20]} b5 {[%emt 0:00:00]} 19. Nd6 {[%emt 0:00:36]} Ba6 {[%emt 0:00:00]} 20. Nd4 {[%emt 0:00:22]} Be7 {[%emt 0:00:00]} 21. Nc6 {[%emt 0:00:45]} Bxd6 {[%emt 0:00:00]} 22. Bxd6 {[%emt 0:00:06]} Ne8 {[%emt 0:00:00]} 23. Bb4 {[%emt 0:00:19]} Bb7 {[%emt 0:00:00]} 24. e5 {[%emt 0:00:16]} Rc8 {[%emt 0:00:00]} 25. Ne7+ {[%emt 0:00:04]} Kh8 {[%emt 0:00:00]} 26. Nxc8 {[%emt 0:01:30]} Bxc8 {[%emt 0:00:00]} 27. Rc1 {[%emt 0:00:07]} Nb6 {[%emt 0:00:00]} 28. Ba5 {[%emt 0:00:16]} Bd7 {[%emt 0:00:00]} 29. Bxb6 {[%emt 0:00:06]} axb6 {[%emt 0:00:00]} 30. Bc6 {[%emt 0:00:07]} Bxc6 {[%emt 0:00:00]} 31. Rxc6 {[%emt 0:00:03]} Kg8 {[%emt 0:00:00]} 32. Rxb6 {[%emt 0:00:03]} Kf8 {[%emt 0:00:00]} 33. Rxb5 {[%emt 0:00:05]} f6 {[%emt 0:00:00]} 34. Rb8 {[%emt 0:00:02]} Kf7 {[%emt 0:00:05]} 35. Rxe8 {[%emt 0:00:03]} Kxe8 {[%emt 0:00:01]} 36. f4 {[%emt 0:00:03]} Kd7 {[%emt 0:00:05]} 37. a4 {[%emt 0:00:04]} Kc6 {[%emt 0:00:01]} 38. a5 {[%emt 0:00:01]} Kb5 {[%emt 0:00:01]} 39. b4 {[%emt 0:00:01]} h6 {[%emt 0:01:31]} 40. Kf2 {[%emt 0:00:04]} fxe5 {[%emt 0:00:05]} 41. fxe5 {[%emt 0:00:02]} h5 {[%emt 0:00:28]} 42. Ke3 {[%emt 0:00:04]} g5 {[%emt 0:00:02]} 43. h4 {[%emt 0:00:03]} gxh4 {[%emt 0:00:29]} 44. gxh4 {[%emt 0:00:02]} Ka6 {[%emt 0:00:10]} 45. Kf4 {[%emt 0:00:05]} Kb5 {[%emt 0:00:02]} 46. Kg5 {[%emt 0:00:02]} Ka6 {[%emt 0:00:19]} 47. Kf6 {[%emt 0:00:03]} Kb5 {[%emt 0:00:06]} 48. Kxe6 {[%emt 0:00:02]} Kc6 {[%emt 0:00:12]} 49. Kf5 {[%emt 0:00:02]} Kb5 {[%emt 0:00:02]} 50. Kg5 {[%emt 0:00:01]} Ka6 {[%emt 0:00:10]} 51. Kxh5 {[%emt 0:00:02]} Kb5 {[%emt 0:00:02]} 52. Kg5 {[%emt 0:00:02]} Kc6 {[%emt 0:00:04]} 53. h5 {[%emt 0:00:02]} Kb5 {[%emt 0:00:10]} 54. h6 {[%emt 0:00:04]} Ka6 {[%emt 0:00:03]} 55. h7 {[%emt 0:00:02]} 1-0

[Event "13th All African Rapid-ch Men 2024"]
[Site "Accra"]
[Date "2024.03.10"]
[Round "6.2"]
[White "Arab, Adlane"]
[Black "Wanyama, Harold"]
[Result "1-0"]
[ECO "E05"]
[WhiteElo "2477"]
[BlackElo "2226"]
[Annotator "TA"]
[PlyCount "145"]
[EventDate "2024.03.07"]
[EventType "rapid"]
[EventCountry "GHA"]
[SourceTitle "playchess.com"]
[Source "ChessBase"]
[SourceQuality "1"]
[TimeControl "900+10"]

{[%evp 28,145,0,0,6,15,37,10,35,-13,0,-5,0,0,0,0,0,12,93,78,58,19,19,34,25,31,26,26,39,25,27,50,57,0,0,0,0,0,0,0,0,0,0,0,0,0,0,0,0,0,0,0,0,0,0,0,0,0,0,0,0,1,0,0,12,10,4,0,0,0,10,10,16,14,25,13,16,16,35,35,190,126,29964,29962,29973,29974,29974,29969,29974,29971,29971,29971,29972,29973,29973,29974,29976,29962,29986,29976,29970,441,8,19,29978,29976,29977,29977,29977,29978,29990,29979,29991,29992,29992,29993,29993,29994,29999,29994]} 1. d4 {[%emt 0:00:03]} d5 {[%emt 0:00:02]} 2. c4 {[%emt 0:00:01]} e6 {[%emt 0:00:02]} 3. Nf3 {[%emt 0:00:04]} Nf6 {[%emt 0:00:03]} 4. g3 {[%emt 0:00:03]} Be7 {[%emt 0:00:27]} 5. Bg2 {[%emt 0:00:03]} O-O {[%emt 0:00:02]} 6. O-O {[%emt 0:00:08]} dxc4 {[%emt 0:00:03]} 7. Qc2 {[%emt 0:00:16]} a6 {[%emt 0:00:04]} 8. a4 {[%emt 0:00:16]} Bd7 {[%emt 0:00:52]} 9. Qxc4 {[%emt 0:00:41]} Bc6 {[%emt 0:00:20]} 10. Nc3 {[%emt 0:00:24]} b5 {[%emt 0:00:07]} 11. Qd3 {[%emt 0:00:32]} b4 {[%emt 0:00:05]} 12. Nb1 {[%emt 0:00:07]} Be4 {[%emt 0:00:28]} 13. Qd1 {[%emt 0:00:03]} c5 {[%emt 0:00:27]} 14. Nbd2 {[%emt 0:00:10]} Bb7 {[%emt 0:00:10] E05: Katalanisch.} 15. dxc5 {[%emt 0:00:09]} Bxc5 {[%emt 0:00:09]} 16. Nb3 {[%emt 0:00:09]} Be7 {[%emt 0:00:20]} 17. Ne5 {[%emt 0:00:24]} (17. Qxd8 {vereinfacht} Rxd8 18. Ne5 Bxg2 19. Kxg2 Nfd7 20. Nd3) 17... Bxg2 {[%emt 0:01:48]} 18. Kxg2 {[%emt 0:00:03]} (18. Qxd8 $14 Rxd8 19. Kxg2) 18... Qc8 $146 {[%emt 0:00:10]} ({Predecessor:} 18... Qc7 19. Nf3 Rd8 20. Bf4 Qb7 21. Na5 Qe4 22. Qc1 Nd5 23. Bxb8 Rdxb8 24. Qc4 Qxc4 25. Nxc4 {½-½ Cosma,E (2352)-Boyard,M (2035) Olympiad Women-40 2012 (1.2)}) 19. Qd3 {[%emt 0:01:41]} Nbd7 {[%emt 0:00:26]} 20. Bf4 {[%emt 0:00:21]} Nxe5 {[%emt 0:00:15]} 21. Bxe5 {[%emt 0:00:02]} Rd8 {[%emt 0:00:03]} 22. Qf3 {[%emt 0:00:28]} Qc2 {[%emt 0:01:37]} (22... Rd5 $11 23. Rfc1 Qd8) 23. Rac1 {[%emt 0:01:19]} Qe4 {[%emt 0:00:02]} 24. Bxf6 {[%emt 0:00:30]} Qxf3+ {[%emt 0:00:08]} 25. Kxf3 {[%emt 0:00:01]} Bxf6 {[%emt 0:00:02]} 26. Rc2 {[%emt 0:00:02]} Rd5 {[%emt 0:00:31]} 27. Rfc1 {[%emt 0:00:23]} h5 {[%emt 0:00:03]} 28. Rc8+ {[%emt 0:00:12]} Rxc8 {[%emt 0:00:02]} 29. Rxc8+ {[%emt 0:00:01]} Kh7 {[%emt 0:00:02]} 30. Rc2 {[%emt 0:00:03]} (30. Rc6 $14) 30... Rd1 $11 {[%emt 0:02:59]} 31. Nc5 {[%emt 0:01:39]} Ra1 {[%emt 0:00:34]} 32. Nxa6 {[%emt 0:00:26]} Rxa4 {[%emt 0:00:05]} 33. Nc5 $1 {[%emt 0:00:01]} Ra2 {[%emt 0:00:08]} 34. Nd3 {[%emt 0:00:06]} b3 {[%emt 0:00:41]} 35. Rc5 {[%emt 0:02:04]} g6 {[%emt 0:00:21]} (35... Bxb2 $6 36. Rxh5+ Kg8 37. Rb5 $16) 36. Rb5 {[%emt 0:01:03]} Bxb2 {[%emt 0:00:07]} 37. Rxb3 {[%emt 0:00:03]} Bf6 {[%emt 0:00:17]} 38. Rb7 {[%emt 0:00:02]} Kg8 {[%emt 0:00:14]} 39. Nc5 {[%emt 0:00:18]} Rb2 {[%emt 0:00:43]} 40. Rc7 {[%emt 0:00:26]} Bd4 {[%emt 0:01:06]} 41. Ne4 {[%emt 0:00:41]} Rb8 {[%emt 0:00:11]} 42. Rd7 {[%emt 0:00:23]} Be5 {[%emt 0:00:10]} 43. h3 {[%emt 0:00:10]} Rc8 {[%emt 0:00:11]} 44. g4 {[%emt 0:00:12]} hxg4+ {[%emt 0:00:07]} 45. hxg4 {[%emt 0:00:02]} Rc7 {[%emt 0:00:32]} 46. Nf6+ {[%emt 0:02:09]} Kf8 $1 {[%emt 0:00:05]} 47. Ke4 {[%emt 0:00:17]} Bh2 {[%emt 0:00:42]} (47... Bxf6 $2 48. Rxc7 Kg7 49. e3 $18) 48. Rd4 {[%emt 0:00:35]} Rc8 {[%emt 0:01:47]} 49. g5 {[%emt 0:00:16]} Bb8 {[%emt 0:00:16]} 50. e3 {[%emt 0:00:20]} Bc7 {[%emt 0:00:46]} 51. Rd7 {[%emt 0:00:12]} Bd8 {[%emt 0:00:18]} 52. f4 {[%emt 0:00:11]} Bxf6 {[%emt 0:00:28]} 53. gxf6 {[%emt 0:00:01]} Kg8 $2 {[%emt 0:00:01]} (53... Ra8 $14) 54. Ke5 $18 {[%emt 0:00:04]} Rc5+ $2 {[%emt 0:00:31][%mdl 8192]} (54... Ra8 $16) 55. Kd6 {[%emt 0:00:01]} Rf5 {[%emt 0:00:47]} 56. Ke7 {[%emt 0:00:06]} e5 {[%emt 0:00:01]} 57. Rd8+ {[%emt 0:00:18]} Kh7 {[%emt 0:00:01]} 58. fxe5 {[%emt 0:00:23]} Rxe5+ {[%emt 0:00:08]} 59. Kxf7 {[%emt 0:00:01]} Rxe3 {[%emt 0:00:08]} 60. Rd1 {[%emt 0:00:06]} Rh3 {[%emt 0:00:11]} 61. Rg1 {[%emt 0:00:07]} Rh6 {[%emt 0:00:10]} 62. Rg5 {[%emt 0:00:12]} Kh8 {[%emt 0:00:12]} 63. Rg2 {[%emt 0:00:29]} ({Schwächer ist} 63. Rxg6 Rxg6 64. Kxg6 Kg8 $11) 63... Kh7 {[%emt 0:00:03]} 64. Rg1 {[%emt 0:00:48]} (64. Ke8 $142 Rh4 65. f7 Re4+ 66. Kf8 g5 67. Rxg5 Rf4 68. Re5 Rc4 69. Ke7) 64... Rh2 $2 {[%emt 0:00:25]} ({Besser ist} 64... Rh4 $18 65. Kf8 (65. Rxg6 Rb4 $11) 65... Kh6) 65. Kf8 {[%emt 0:00:14]} Kh6 $2 {[%emt 0:00:30][%mdl 8192]} (65... g5 $11) 66. f7 {[%emt 0:00:05]} Rf2 {[%emt 0:00:07]} 67. Kg8 {[%emt 0:00:18]} g5 {[%emt 0:00:05]} 68. f8=Q+ {[%emt 0:00:02]} ({Nicht} 68. f8=B+ Kg6 $11) 68... Rxf8+ {[%emt 0:00:01]} 69. Kxf8 {[%emt 0:00:01]} Kh5 {[%emt 0:00:01]} 70. Kf7 {[%emt 0:00:02]} g4 {[%emt 0:00:01]} 71. Kf6 {[%emt 0:00:01]} Kh4 {[%emt 0:00:02]} 72. Kf5 {[%emt 0:00:00]} g3 {[%emt 0:00:01]} 73. Kf4 {[%emt 0:00:01]} 1-0